Cogmind - Beta 13 @@@ ROGUE MODE // 2024.04.09 @ 02:16:58 Player: alyx Result: Destroyed by G-34 Mercenary with Small Laser Performance ------------- Evolutions (1) 500 Regions Visited (3) 600 Robots Destroyed (48) 240 Value Destroyed (1536) 1536 Prototype IDs (1) 20 Alien Tech Used (0) 0 Bonus (110) 110 TOTAL SCORE: 3006 Bonus ------- High Alert Combat Kills 50 Follower Combat Kills 60 Cogmind --------- Core Integrity 0/400 Matter 51/300 Energy 265/265 System Corruption 7% Temperature Cool (10) Movement Walking (330) Ox3 Location -9/Storage Parts ------- > --- POWER (1) -------- Improved Ion Engine > --- PROPULSION (3) --- Aluminum Leg > --- UTILITY (3) ------ Large Storage Unit Advanced Visual Processing Unit Seismic Detector > --- WEAPON (2) ------- Heavy Assault Rifle Enhanced Autogun > --- INVENTORY (15) --- Improved Ion Engine Improved Ion Engine Heat Sink Large Storage Unit High-capacity Storage Unit High-capacity Matter Pod (200) Light Armor Plating Light Armor Plating EM Shotgun Medium Laser Beam Rifle Enhanced Autogun Rocket Launcher Rocket Launcher Peak State ------------ > --- POWER ------------ Improved Ion Engine > --- PROPULSION ------- Aluminum Leg Aluminum Leg Aluminum Leg > --- UTILITY ---------- Large Storage Unit High-capacity Matter Pod Advanced Visual Processing Unit > --- WEAPON ----------- Heavy Assault Rifle Enhanced Autogun > --- INVENTORY -------- Ion Engine Ion Engine Wheel Heat Sink Large Storage Unit High-capacity Storage Unit Advanced Visual Processing Unit Seismic Detector Light Armor Plating Medium Laser Light Assault Rifle Enhanced Autogun Rocket Launcher Rocket Launcher Rocket Launcher [Rating: 18] Favorites ----------- Power Improved Ion Engine Engine Improved Ion Engine Propulsion Aluminum Leg Leg Aluminum Leg Utility Large Storage Unit Device Seismic Detector Storage Large Storage Unit Processor Advanced Visual Processing Unit Protection Light Armor Plating Weapon Assault Rifle Energy Gun EM Pulse Gun Ballistic Gun Assault Rifle Launcher Rocket Launcher Build | -11 -10 -9 -9 ------- Run | Yrd Mat Mat Sto Slots Evolved 2 | . . 2 . Power . | . . . . Propulsion 1 | . . 1 . Utility 1 | . . 1 . Weapon . | . . . . Parts Attached 55 | 7 2 14 32 Power 11 | 2 . 3 6 Engine 11 | 2 . 3 6 Core . | . . . . Reactor . | . . . . Propulsion 15 | 2 . 4 9 Treads . | . . . . Leg 15 | 2 . 4 9 Wheel . | . . . . Hover . | . . . . Flight . | . . . . Utility 12 | 1 2 2 7 Device 2 | . . . 2 Storage 3 | 1 1 1 . Processor 2 | . . . 2 Hackware . | . . . . Protection 5 | . 1 1 3 Artifact . | . . . . Weapon 17 | 2 . 5 10 Energy Gun 2 | 1 . 1 . Energy Cannon . | . . . . Ballistic Gun 12 | 1 . 3 8 Ballistic Cannon . | . . . . Launcher 3 | . . 1 2 Special Weapon . | . . . . Impact Weapon . | . . . . Slashing Weapon . | . . . . Piercing Weapon . | . . . . Special Melee Weapon . | . . . . Unidentified Prototypes 1 | . . 1 . Parts Lost 17 | . . 5 12 Power 3 | . . 1 2 Propulsion 7 | . . 1 6 Utility 5 | . . 1 4 Weapon 2 | . . 2 . Highest Loss Streak 3 | . . 3 3 To Critical Strikes . | . . . . Average Slot Usage (%) 94 | . 95 90 96 Engine 11 | . 14 10 10 Leg 31 | . 28 32 32 Device 2 | . . . 4 Storage 15 | . 14 22 12 Processor 4 | . . . 7 Protection 6 | . 9 5 6 Energy Gun 3 | . 14 4 . Ballistic Gun 16 | . 14 11 20 Launcher 1 | . . 2 . Naked Turns . | . . . . Heaviest Build 40 | 14 30 40 39 Greatest Support 30 | 20 20 30 30 Greatest Overweight (x) 4 | 4 1 1 1 Average Overweight (x) . | 1 . . . Largest Inventory Capacity 15 | 8 15 15 15 Average Capacity 14 | 7 13 15 15 Most Carried 15 | 8 15 15 15 Average Carried 13 | 4 11 14 14 Final Capacity 15 | 8 15 15 15 Final Carried 15 | 6 15 15 14 Class Distribution -------------------- 61% | Scavenger-Mutant 38% | Mutant Dominant Class ---------------- Mutant | -10/Materials Mutant | -9/Materials Scavenger-Mutant | -9/Storage Resources | -11 -10 -9 -9 ----------- Run | Yrd Mat Mat Sto Matter Collected 1613 | 214 93 332 974 Remotely . | . . . . Salvage Created 1856 | . 93 367 1396 Parts 129 | . 10 34 85 Haulers Intercepted . | . . . . Recyclers Shooed 2 | . . 1 1 Parts Field Recycled . | . . . . Retrieved Matter . | . . . . Parts Self-Destructed . | . . . . Prevented . | . . . . Kills | -11 -10 -9 -9 ------- Run | Yrd Mat Mat Sto Combat Hostiles Destroyed 42 | . 4 10 28 Guns 42 | . 4 10 28 Classes Destroyed 8 | . 2 2 4 Worker 4 | . . 2 2 Builder 1 | . . . 1 Recycler 1 | . . . 1 Swarmer 6 | . 3 3 . Grunt 19 | . 1 5 13 Brawler 2 | . . . 2 Duelist 1 | . . . 1 Sentry 14 | . . 2 12 Best Kill Streak 5 | . 3 5 5 Combat Bots Only 5 | . 3 4 5 Max Kills in Single Turn 2 | . 1 1 2 Gunslinging . | . . . . Exploded . | . . . . Melee . | . . . . Uniques/NPCs Destroyed . | . . . . Combat | -11 -10 -9 -9 -------- Run | Yrd Mat Mat Sto Hostile Shots Fired 278 | . 35 81 162 Missed 61 | . 11 16 34 Damage Taken 3074 | . 192 778 2104 Core 476 | . 66 85 325 Absorbed by Shields . | . . . . Redirected to Shielding 50 | . 10 40 . Regen/Repaired (Parts) 209 | . . . 209 Core Remaining (%) 86 | 100 73 . . Volleys Fired 167 | . 7 54 106 Largest 2 | . 2 2 2 Hottest 70 | . 60 70 56 Shots Fired 291 | . 14 69 208 Gun 282 | . 14 67 201 Cannon . | . . . . Launcher 9 | . . 2 7 Special . | . . . . Kinetic 261 | . 7 53 201 Thermal 13 | . . 13 . Explosive 9 | . . 2 7 Electromagnetic 8 | . 7 1 . Robot Hit Streak 15 | . 4 10 15 Robot Miss Streak 3 | . 1 3 3 Penetration Max . | . . . . Secondary Targets 4 | . 1 . 3 Max Gunslinging Chain 1 | . 1 . 1 Shots Hit Robots 199 | . 9 47 143 Core Hits 79 | 1 5 20 53 Critical Kills 1 | . . 1 . Critical Parts Destroyed . | . . . . Critical Strikes 1 | . . 1 . Destroy 1 | . . 1 . Melee Attacks . | . . . . Impact . | . . . . Slashing . | . . . . Piercing . | . . . . Sneak Attacks . | . . . . Combat Hostiles . | . . . . Follow-up Attacks . | . . . . Damage Inflicted 3206 | 1 108 628 2469 Guns 2979 | . 108 604 2267 Cannons . | . . . . Explosions 223 | . . 24 199 Melee . | . . . . Ramming 4 | 1 . . 3 Kinetic 2822 | . 39 516 2267 Thermal 76 | . . 76 . Explosive 223 | . . 24 199 Electromagnetic 81 | . 69 12 . Impact . | . . . . Slashing . | . . . . Piercing . | . . . . Highest Corruption 7 | . . . 7 Average Corruption 6 | . . . 6 Corruption Purged . | . . . . Corruption Blocked . | . . . . Effects 31 | . . . 31 Message Errors 6 | . . . 6 Matter Fused 3 | . . . 3 Heat Flow Errors 5 | . . . 5 Energy Discharges 2 | . . . 2 Parts Rejected 1 | . . . 1 Data Loss (minor) 4 | . . . 4 Data Loss (major) 2 | . . . 2 Misfires 2 | . . . 2 Alerts 1 | . . . 1 Weapon Failures 5 | . . . 5 Overload Shots . | . . . . Overflow Damage 15 | . . . 15 Projectiles . | . . . . Explosions 15 | . . . 15 Melee . | . . . . Knockbacks . | . . . . Impact . | . . . . Kinetic . | . . . . Secondary . | . . . . Self-Inflicted Damage 139 | . . 49 90 Shots 4 | . . 1 3 Rammed 1 | 1 . . . Targets Rammed 2 | 1 . . 1 Kicked 1 | . . . 1 Crushed . | . . . . Highest Temperature 250 | . 12 54 250 Average Temperature 53 | . 9 26 58 Received Heat Transfer 801 | . 12 222 567 Effects 2 | . . . 2 Energy Bleed 2 | . . . 2 Siege Activations . | . . . . Robots Corrupted . | . . . . Combat Hostiles . | . . . . Parts Fried . | . . . . Impact Corruptions . | . . . . Robots Melted . | . . . . Combat Hostiles . | . . . . Parts Melted . | . . . . Heat Transferred 222 | . . 222 . Parts Sabotaged . | . . . . Parts Stolen . | . . . . Parts Stripped . | . . . . Power Chain Reactions . | . . . . Alert | -11 -10 -9 -9 ------- Run | Yrd Mat Mat Sto Peak Influence 482 | . 116 223 482 Initial 56 | . . 48 56 Average 174 | . 23 107 256 Maximum Alert Level 2 | . . 1 2 Low Security (%) 58 | 100 100 88 29 Level 1 34 | . . 11 57 Level 2 7 | . . . 13 Level 3 . | . . . . Level 4 . | . . . . Level 5 . | . . . . High Security . | . . . . Max Security . | . . . . Squads Dispatched 7 | . 1 1 5 Investigation 1 | . . 1 . Extermination . | . . . . Reinforcement 1 | . 1 . . Assault 2 | . . . 2 Garrison 3 | . . . 3 Intercept . | . . . . Searches Triggered . | . . . . Construction Impeded . | . . . . Haulers Reinforced . | . . . . Active Scanning Responses . | . . . . Cargo Convoy Interrupts . | . . . . Stealth | -11 -10 -9 -9 --------- Run | Yrd Mat Mat Sto Distress Signals 4 | . 1 1 2 Communications Jammed . | . . . . Distress Signals . | . . . . Times Spotted 59 | . 6 14 39 Peak Tracking Total 10 | . 4 4 10 Tactical Retreats 2 | . . . 2 Traps | -11 -10 -9 -9 ------- Run | Yrd Mat Mat Sto Traps Triggered 1 | . . 1 . Indirectly . | . . . . Trap Hack Attempts . | . . . . Triggered . | . . . . Disarmed . | . . . . Reprogrammed . | . . . . Reused . | . . . . Traps Extracted . | . . . . Installed . | . . . . Triggered . | . . . . Machines | -11 -10 -9 -9 ---------- Run | Yrd Mat Mat Sto Machines Disabled 4 | . . 2 2 Max in Single Turn 2 | . . 2 2 Machines Repaired . | . . . . Machines Dismantled . | . . . . Machines Sabotaged . | . . . . Overloaded Fab Kills . | . . . . Hacking | -11 -10 -9 -9 --------- Run | Yrd Mat Mat Sto Machines Accessed 7 | . . . 7 Terminals 4 | . . . 4 Fabricators . | . . . . Repair Stations 2 | . . . 2 Recycling Units . | . . . . Scanalyzers . | . . . . Garrison Access 1 | . . . 1 Total Hacks 21 | . . . 21 Successful 8 | . . . 8 Failed 13 | . . . 13 Catastrophic 1 | . . . 1 Database Lockouts . | . . . . Manual . | . . . . Terminals 8 | . . . 8 Fabricators . | . . . . Repair Stations 7 | . . . 7 Recycling Units . | . . . . Scanalyzers . | . . . . Garrison Access 6 | . . . 6 Terminal Hacks 3 | . . . 3 Open Door 2 | . . . 2 Zone Layout 1 | . . . 1 Fabricator Hacks . | . . . . Repair Station Hacks 5 | . . . 5 Scan Component 3 | . . . 3 Repair 2 | . . . 2 Recycling Unit Hacks . | . . . . Scanalyzer . | . . . . Garrison Access Hacks . | . . . . Unauthorized Hacks . | . . . . Terminals . | . . . . Fabricators . | . . . . Repair Stations . | . . . . Recycling Units . | . . . . Scanalyzers . | . . . . Garrison Access . | . . . . Data Cores Recovered . | . . . . Used . | . . . . Hacking Detections 4 | . . . 4 Full Trace Events 3 | . . . 3 Feedback Events . | . . . . Feedback Blocked . | . . . . Robot Schematics Acquired . | . . . . Robots Built . | . . . . Authchips . | . . . . Time . | . . . . Total Robot Build Rating . | . . . . Part Schematics Acquired . | . . . . Parts Built . | . . . . Authchips . | . . . . Time . | . . . . Total Part Build Rating . | . . . . Parts Repaired 2 | . . . 2 Time 92 | . . . 92 Parts Recycled . | . . . . Recycled Matter . | . . . . Retrieved Matter . | . . . . Retrieved Components . | . . . . Parts Scanalyzed . | . . . . Part Schematics Acquired . | . . . . Parts Damaged . | . . . . Bothacking | -11 -10 -9 -9 ------------ Run | Yrd Mat Mat Sto Used RIF Installer . | . . . . Robots Hacked . | . . . . Non-combat . | . . . . Combat . | . . . . Robot Hacks Applied . | . . . . Relay Couplers Released . | . . . . Fabnet Peak Effective % . | . . . . Robots Rewired . | . . . . Allies Hacked . | . . . . Hacks Repelled . | . . . . Allies | -11 -10 -9 -9 -------- Run | Yrd Mat Mat Sto Total Allies 2 | . . . 2 Largest Group 2 | . . . 2 Highest-Rated Group 62 | . . . 62 Highest-Rated Ally 31 | . . . 31 Total Orders . | . . . . Ally Attacks 7 | . . . 7 Total Damage 147 | . . . 147 Kills 2 | . . . 2 Allies Corrupted 1 | . . . 1 Allies Melted . | . . . . Intel | -11 -10 -9 -9 ------- Run | Yrd Mat Mat Sto Robot Analysis Total . | . . . . Derelict Logs Recovered . | . . . . Drone Launches . | . . . . Drone Recoveries . | . . . . Exploration | -11 -10 -9 -9 ------------- Run | Yrd Mat Mat Sto Turns Passed 2733 | 108 351 780 1494 Spaces Moved 1037 | 44 184 306 503 Core 25 | 25 . . . Treads . | . . . . Legs 1012 | 19 184 306 503 Wheels . | . . . . Hover . | . . . . Flight . | . . . . Fastest Speed 50 | 50 120 120 120 Average Speed 184 | 177 169 187 189 Slowest Speed 250 | 250 190 190 190 Overloaded Moves . | . . . . Propulsion Burnouts . | . . . . Robots Hopped . | . . . . Cave-ins Triggered . | . . . . Exploration Rate (%) 29 | 4 32 16 64 Regions Visited 3 Branch Regions 1 Pre-discovered Areas . | . . . . Known Exits Taken . | . . . . Unknown Exits Taken 3 | 1 1 1 . Scrap Searched . | . . . . Spaces Dug 31 | . . 6 25 Terrain Destroyed 58 | . . 11 47 Melee . | . . . . Projectile . | . . . . AOE 58 | . . 11 47 Terrain Rammed . | . . . . Walls Destroyed . | . . . . Machines Disabled . | . . . . Actions | -11 -10 -9 -9 --------- Run | Yrd Mat Mat Sto Total 1603 | 69 210 446 878 Wait 268 | 11 6 46 205 Move 1034 | 43 183 305 503 Hop . | . . . . Pick Up 44 | 7 11 15 11 Fast Attach 14 | 4 . 2 8 Attach 15 | 2 1 6 6 Detach . | . . . . Swap 26 | 1 1 6 18 Drop 33 | . 1 12 20 Fire 167 | . 7 54 106 Melee . | . . . . Ram 1 | 1 . . . Kick 1 | . . . 1 Crush . | . . . . Escape Stasis . | . . . . Rewire . | . . . . Trap . | . . . . Miscellaneous . | . . . . Route ------- -11/Scrapyard -10/Materials -9/Materials -9/Storage History --------- Turn | Location | Event 26 | -11/Scrapyard | Discovered new exit (range 15) 109 | -11/Scrapyard | Entered Materials 306 | -10/Materials | Build established: Mutant 326 | -10/Materials | Discovered new exit (range 16) 460 | -10/Materials | Entered another Materials area 460 | -9/Materials | Evolved 2 slots: Propulsion x1, Utility x1 723 | -9/Materials | Lost 3 parts (1p1u1w) 1159 | -9/Materials | Discovered new exit (range 16) 1240 | -9/Materials | Entered Storage 1377 | -9/Storage | Build established: Scavenger-Mutant 1409 | -9/Storage | Garrison activated, responded to threat 1578 | -9/Storage | Core integrity fell below 50% 2130 | -9/Storage | Core integrity fell below 20% 2191 | -9/Storage | Lost 3 parts (1n2u) 2302 | -9/Storage | Repaired Hvy. Assault Rifle 2414 | -9/Storage | Repaired Enh. Autogun 2664 | -9/Storage | Met a pair of Derelict thieves 2734 | -9/Storage | Destroyed by G-34 Mercenary with Small Laser Last Messages --------------- 02695_ M-13 Machinist repairs Hover Unit. 02696_ K4-JLN(g) suffers critical hit (Smash). 02696_ K4-JLN(g) system corrupted by crushing effect. 02697_ K4-JLN(g) system terminally corrupted. 02699_ R-06 Scavenger collects Lgt. Angular Momentum Engine. 02702_ R-06 Scavenger collects Prototype Energy Gun. 02705_ R-06 Scavenger collects Ion Engine. 02710_ G-47 Trooper destroyed. 02710_ R-06 Scavenger collects Imp. Heat Sink. 02712_ Imp. Ion Engine destroyed. 02712_ System corrupted by crushing effect (+1). 02715_ R-06 Scavenger collects Aluminum Leg. 02717_ System corrupted: Enh. Autogun jammed. 02720_ B-36 Bruiser destroyed. 02720_ Switching to secondary target: G-34 Mercenary. 02722_ G-47 Trooper destroyed. 02724_ Aluminum Leg destroyed. 02725_ JY| W3PRIDU&O4ZFHLNEEOE /E3XD 02726_ Aluminum Leg destroyed. 02730_ G-34 Mercenary destroyed. Map ----- +----------------------------------------------------+ | ### # " " ### #############???? | | ##### # """"" ### #???? | | ????T #??????????# ##+###### #???? | | ###?? #??????????# # # #???? | | #?? #??????????# #== """ + #???? | | #???? #??????????# #== """ # #???? | | #???? #??????????# #== """ # #???? | | ###?????#??????????# # + #???? | | #????????????????# ## ###+#######+###?? | | #??????########### # ]##?#T #?? | | #??????# + % #?## #?? | | #??????# """ # # #??#!!!#?? | | #??????# """"?" # # " ##??#!!!#?? | | #??????# "????" + + #??#####?? | | #??????# "????" # # ##???????? | | #??????# "?"""" # # # #???????? | | ###??????# """ # # ##???????? | | ?????????# # # ##????????? | | ?????????########### ## ### ##????????? | | ???????????????????# ### ##?????????? | | ???????????????????# #########??????????? | | ???????????????????# # #! ==#??????????? | | ???????????????????# %#*%" = #??????????? | | ???????????????????# %gm*= =#??????????? | | ???????????????????# #[%" #??????????? | | ???????????????????# ##@# == #??????????? | | ???????????????????+ #### = =#??????????? | | ???????????????????# #??######??????????? | | ???????????????????# #??????????????????? | | ???????????????????# ??????????????????? | | ???????????????????# ??????????????????? | | ???????????????????# ??????????????????? | | ???????????????????#####??????????????????? | | ??????????????????????????????????????????? | | ??????????????????????????????????????????? | | ??????????????????????????????????????????? | | ??????????????????????????????????????????? | | ??????????????????????????????????????????? | | ??????????????????????????????????????????? | | ??????????????????????????????????????????? | | ??????????????????????????????????????????? | | ??????????????????????????????????????????? | | ??????????????????????????????????????????? | | ??????????????????????????????????????????? | | ??????????????????????????????????????????? | | ??????????????????????????????????????????? | | | | | | | | | +----------------------------------------------------+ Best States ------------- Heat Dissipation 28 Energy Generation 12 Energy Capacity 265 Matter Stores 390 Matter Capacity 500 Sight Range 20 Terrain Scan Density 10 Armor Coverage 300 Propulsion Shielding 33 Evasion (%) 55 Item Schematics ----------------- None Robot Schematics ------------------ None Fabricated ------------ Nothing Alien Tech Used ----------------- None Achievements -------------- Let's See Who's Tougher Challenges ------------ None Game ------ Seed IntegratedRelayAxe Manual? 0 Play Time 00:37:23 Cumulative 3.9 hours Start 2024.04.08 @ 22:54:07 End 2024.04.09 @ 02:16:58 Sessions 1 Manual Loads 0 Difficulty Rogue Special Mode None Game No. 4 Rogue 4 Adventurer 0 Explorer 0 Win Type - Total 0 Types 0/0/0/0/0/0/0/0/0 Lore% 0 Gallery% 8 Achievement% 8 Wizard Run 0 Options --------- Layout 0 ASCII 0 Keyboard 0 Movement Mouse Keybinds 0 Fullscreen 1 Font 24/Smallcaps Map View 76x50 Zoom Use 0% Tactical HUD 1 Map Filters NONE Filters NONE Steam 1 RUN: 88b09ded-141f-4203-8720-2509d781e3ae